fUSD/lending_fUSD_20240429
["ID","MTS","AMOUNT","RATE_DAILY","PERIOD"]
[324877014,1714390241599,-500.0,0.00012898,2]
[324877015,1714390241611,-500.0,0.00012898,2]
[324877016,1714390241620,-500.0,0.00012898,2]
[324877017,1714390241629,-500.0,0.00012898,2]
[324877018,1714390241638,-855.99,0.00012898,2]
[324877019,1714390241648,-500.0,0.00012898,2]
[324877020,1714390241658,-772.21,0.00012898,2]
[324877021,1714390241667,-500.0,0.00012898,2]
[324877022,1714390241676,-500.0,0.00012898,2]
[324877023,1714390241685,-500.0,0.00012898,2]
[324877024,1714390241694,-500.0,0.00012898,2]
[324877025,1714390241703,-500.0,0.00012898,2]
[324877026,1714390241712,-2248.69,0.00012898,2]
[324877027,1714390241722,-500.0,0.00012898,2]
[324877028,1714390241732,-500.0,0.00012898,2]
[324877029,1714390241741,-500.0,0.00012898,2]
[324877030,1714390241751,-500.0,0.00012898,2]
[324877031,1714390241761,-500.0,0.00012898,2]
[324877032,1714390241770,-500.0,0.00012898,2]
[324877033,1714390241780,-500.0,0.00012898,2]
[324877034,1714390241789,-500.0,0.00012898,2]
[324877035,1714390241798,-500.0,0.00012898,2]
[324877036,1714390241808,-909.58,0.00012898,2]
[324877037,1714390241817,-500.0,0.00012898,2]
[324877038,1714390241826,-500.0,0.00012898,2]
[324877039,1714390241835,-500.0,0.00012898,2]
[324877040,1714390241844,-4782.23,0.00012898,2]
[324877041,1714390241857,-1168.62,0.00012898,2]
[324877042,1714390241867,-500.0,0.00012898,2]
[324877043,1714390241876,-500.0,0.00012898,2]
[324877044,1714390241886,-780.07,0.00012898,2]
[324877045,1714390241895,-500.0,0.00012898,2]
[324877046,1714390241903,-500.0,0.00012898,2]
[324877047,1714390241913,-503.72,0.00012898,2]
[324877048,1714390241922,-500.0,0.00012898,2]
[324877049,1714390241931,-344.39084783,0.00012898,2]
[324877050,1714390241982,-272.37360447,0.00012898,2]
[324877061,1714390243221,-461.88,0.00012897,2]
[324877062,1714390243231,-204.3855477,0.00012898,2]
[324877063,1714390243240,-237.5484523,0.00012898,2]
[324877064,1714390243252,-262.4515477,0.00012898,2]
[324877065,1714390243261,-500.0,0.00012898,2]
[324877066,1714390243271,-399.5334523,0.00012898,2]
[324877082,1714390246005,-441.54975162,0.00012897,2]
[324877083,1714390246122,-58.45024838,0.00012897,2]
[324877084,1714390246132,-100.4665477,0.00012898,2]
[324877085,1714390246141,-386.50899053,0.00012898,2]
[324877086,1714390246178,-611.21100947,0.00012898,2]
[324877087,1714390246188,-819.19,0.00012898,2]
[324877088,1714390246197,-714.51,0.00012898,2]
[324877089,1714390246207,-500.0,0.00012898,2]
[324877090,1714390246216,-500.0,0.00012898,2]
[324877091,1714390246226,-500.0,0.00012898,2]
[324877092,1714390246236,-500.0,0.00012898,2]
[324877093,1714390246246,-500.0,0.00012898,2]
[324877094,1714390246256,-500.0,0.00012898,2]
[324877095,1714390246265,-500.0,0.00012898,2]
[324877096,1714390246275,-500.0,0.00012898,2]
[324877097,1714390246284,-500.0,0.00012898,2]
[324877098,1714390246293,-500.0,0.00012898,2]
[324877100,1714390246302,-4969.57,0.00012898,2]
[324877102,1714390246312,-500.0,0.00012898,2]
[324877104,1714390246321,-1270.63,0.00012898,2]
[324877106,1714390246330,-432.21,0.00012898,2]
[324877109,1714390246339,-500.0,0.00012898,2]
[324877110,1714390246348,-112756.71070966,0.00012898,3]
[324877125,1714390379854,300.98,0.00011713,2]
[324877127,1714390390924,500.0,0.0001178,2]
[324877128,1714390391810,500.0,0.0001178,2]
[324877129,1714390410027,500.0,0.0001178,2]
[324877130,1714390432155,298.84757904,0.0001178,2]
[324877131,1714390450176,298.84757904,0.0001178,2]
[324877132,1714390468160,298.84757904,0.0001178,2]
[324877133,1714390484361,312.31,9.841e-05,2]
[324877134,1714390484577,312.31,0.00012105,2]
[324877137,1714390518998,700.66846904,0.0001,3]
[324877153,1714391140399,5106.11449588,9e-05,120]
[324877174,1714391390581,-968.2028248,8.999e-05,2]
[324877175,1714391390604,-4440.88799438,9e-05,2]
[324877176,1714391402871,-568.71375085,9e-05,2]
[324877177,1714391402892,-399.48907395,9e-05,2]
[324877183,1714391432082,-399.48907395,9e-05,2]
[324877184,1714391432093,-166.41,9.397e-05,2]
[324877185,1714391432103,-308.95,9.827e-05,2]
[324877186,1714391432112,-301.06060662,0.0001,3]
[324877187,1714391432121,-2450.0,0.00011,3]
[324877188,1714391432130,-854.75,0.00011582,2]
[324877189,1714391432140,-165.27,0.00011604,2]
[324877190,1714391432149,-310.82,0.00011661,2]
[324877191,1714391432158,-614.74,0.00011729,2]
[324877192,1714391432168,-154.99,0.00011732,2]
[324877193,1714391432177,-150.0,0.00011746,2]
[324877194,1714391432187,-366.2073039,0.00012,2]
[324877195,1714391432196,-308.95,0.00012091,2]
[324877196,1714391432205,-509.0,0.00012329,2]
[324877197,1714391432214,-164.57,0.000125,2]
[324877198,1714391432224,-152.0,0.00012563,3]
[324877199,1714391432233,-1798.3904,0.000126,2]
[324877200,1714391432242,-7500.0,0.000126,2]
[324877201,1714391432251,-500.0,0.00012602,2]
[324877202,1714391432261,-706.32,0.00012603,2]
[324877203,1714391432274,-158.12,0.00012603,2]
[324877204,1714391432283,-1500.0,0.00012674,2]
[324877205,1714391432293,-505.69769097,0.00012698,2]
[324877206,1714391432302,-220.66660495,0.00012699,2]
[324877207,1714391432312,-506.82350635,0.00012699,2]
[324877208,1714391432323,-502.92718545,0.00012699,2]
[324877209,1714391432333,-500.0,0.00012699,2]
[324877210,1714391432342,-500.0,0.00012699,2]
[324877211,1714391432352,-500.0,0.00012699,2]
[324877212,1714391432363,-221.9893048,0.00012699,2]
[324877213,1714391432373,-500.0,0.00012699,2]
[324877214,1714391432382,-582.07,0.00012699,2]
[324877215,1714391432392,-500.0,0.00012699,2]
[324877216,1714391432402,-500.0,0.00012699,2]
[324877217,1714391432412,-500.0,0.00012699,2]
[324877218,1714391432423,-500.0,0.00012699,2]
[324877219,1714391432432,-500.0,0.00012699,2]
[324877220,1714391432442,-500.0,0.00012699,2]
[324877221,1714391432452,-507.50608851,0.00012699,2]
[324877222,1714391432461,-500.0,0.00012699,2]
[324877223,1714391432470,-207.0247539,0.00012699,2]
[324877224,1714391432480,-500.0,0.00012699,2]
[324877225,1714391432490,-508.29008182,0.00012699,2]
[324877226,1714391432499,-216.77981573,0.00012699,2]
[324877227,1714391432509,-500.0,0.00012699,2]
[324877228,1714391432519,-500.0,0.00012699,2]
[324877229,1714391432528,-500.0,0.00012699,2]
[324877231,1714391432538,-500.0,0.00012699,2]
[324877233,1714391432548,-500.0,0.00012699,2]
[324877235,1714391432557,-505.88183437,0.00012699,2]
[324877237,1714391432567,-500.0,0.00012699,2]
[324877239,1714391432577,-500.0,0.00012699,2]
[324877241,1714391432587,-505.55166157,0.00012699,2]
[324877243,1714391432596,-500.0,0.00012699,2]
[324877245,1714391432606,-500.0,0.00012699,2]
[324877247,1714391432616,-500.0,0.00012699,2]
[324877249,1714391432626,-500.0,0.00012699,2]
[324877251,1714391432636,-500.0,0.00012699,2]
[324877253,1714391432646,-471.03775123,0.00012699,2]
[324877255,1714391432655,-866.41,0.00012699,2]
[324877257,1714391432665,-500.0,0.00012699,2]
[324877259,1714391432674,-500.0,0.00012699,2]
[324877261,1714391432684,-500.0,0.00012699,2]
[324877264,1714391432694,-150.0,0.00012699,2]
[324877266,1714391432703,-500.0,0.00012699,2]
[324877268,1714391432713,-500.0,0.00012699,2]
[324877270,1714391432724,-515.32,0.00012699,2]
[324877272,1714391432736,-500.0,0.00012699,2]
[324877274,1714391432745,-500.0,0.00012699,2]
[324877276,1714391432754,-500.0,0.00012699,2]
[324877278,1714391432764,-500.0,0.00012699,2]
[324877280,1714391432774,-500.0,0.00012699,2]
[324877282,1714391432783,-589.26536761,0.00012699,2]
[324877283,1714391432791,-500.0,0.00012699,2]
[324877284,1714391432802,-500.0,0.00012699,2]
[324877285,1714391432811,-500.0,0.00012699,2]
[324877286,1714391432822,-542.78,0.00012699,2]
[324877287,1714391432833,-500.0,0.00012699,2]
[324877288,1714391432843,-500.0,0.00012699,2]
[324877289,1714391432852,-500.0,0.00012699,2]
[324877290,1714391432861,-504.12784133,0.00012699,2]
[324877291,1714391432871,-500.0,0.00012699,2]
[324877292,1714391432880,-500.0,0.00012699,2]
[324877293,1714391432891,-500.0,0.00012699,2]
[324877294,1714391432900,-500.0,0.00012699,2]
[324877295,1714391432911,-500.0,0.00012699,2]
[324877296,1714391432922,-500.0,0.00012699,2]
[324877297,1714391432932,-933.08,0.00012699,2]
[324877298,1714391432942,-507.06318018,0.00012699,2]
[324877299,1714391432952,-500.0,0.00012699,2]
[324877300,1714391432962,-500.0,0.00012699,2]
[324877301,1714391432971,-427.98929251,0.00012699,2]
[324877302,1714391432986,-72.01070749,0.00012699,2]
[324877303,1714391432995,-500.0,0.00012699,2]
[324877304,1714391433005,-500.0,0.00012699,2]
[324877305,1714391433015,-500.0,0.00012699,2]
[324877306,1714391433025,-507.69948382,0.00012699,2]
[324877307,1714391433035,-500.0,0.00012699,2]
[324877308,1714391433044,-500.0,0.00012699,2]
[324877309,1714391433054,-500.0,0.00012699,2]
[324877310,1714391433063,-384.54323858,0.00012699,2]
[324877311,1714391433073,-1207.48,0.00012699,2]
[324877312,1714391433082,-826.97,0.00012699,2]
[324877313,1714391433092,-500.0,0.00012699,2]
[324877314,1714391433101,-165.31206238,0.00012699,2]
[324877315,1714391433111,-506.91,0.00012699,2]
[324877316,1714391433120,-834.56,0.00012699,2]
[324877317,1714391433129,-500.0,0.00012699,2]
[324877318,1714391433139,-500.0,0.00012699,2]
[324877319,1714391433148,-500.0,0.00012699,2]
[324877320,1714391433159,-500.0,0.00012699,2]
[324877321,1714391433169,-500.0,0.00012699,2]
[324877322,1714391433179,-450.14509909,0.00012699,2]
[324877323,1714391433189,-500.0,0.00012699,2]
[324877324,1714391433198,-500.0,0.00012699,2]
[324877325,1714391433207,-589.43173862,0.00012699,2]
[324877326,1714391433217,-70.80033783,0.00012699,2]
[324877327,1714391433231,-374.586,0.00012699,2]
[324877328,1714391433243,-54.61366217,0.00012699,2]
[324877329,1714391433254,-213.33633783,0.00012699,2]
[324877330,1714391433274,-286.66366217,0.00012699,2]
[324877331,1714391433284,-500.0,0.00012699,2]
[324877332,1714391433294,-1036.1,0.00012699,2]
[324877333,1714391433303,-500.0,0.00012699,2]
[324877334,1714391433317,-500.0,0.00012699,2]
[324877335,1714391433327,-501.21244979,0.00012699,2]
[324877336,1714391433339,-500.0,0.00012699,2]
[324877337,1714391433350,-230.09179142,0.00012699,2]
[324877338,1714391433370,-269.90820858,0.00012699,2]
[324877339,1714391433379,-500.0,0.00012699,2]
[324877340,1714391433389,-500.0,0.00012699,2]
[324877341,1714391433400,-500.0,0.00012699,2]
[324877342,1714391433410,-500.0,0.00012699,2]
[324877343,1714391433419,-257.47,0.00012699,2]
[324877344,1714391433429,-5313.77,0.00012699,2]
[324877345,1714391433439,-500.0,0.00012699,2]
[324877346,1714391433448,-500.0,0.00012699,2]
[324877347,1714391433458,-1310.77,0.00012699,2]
[324877348,1714391433467,-500.0,0.00012699,2]
[324877349,1714391433477,-564.1,0.00012699,2]
[324877350,1714391433487,-500.0,0.00012699,2]
[324877351,1714391433496,-500.0,0.00012699,2]
[324877352,1714391433506,-153.18264002,0.00012699,2]
[324877353,1714391433562,-885.01097913,0.00012699,2]
[324877354,1714391433574,-633.98886173,0.00012699,2]
[324877355,1714391433599,-250.44396099,0.00012699,2]
[324877365,1714391438400,-3289.6025,0.000126,2]
[324877366,1714391438412,-787.53935465,0.00012698,2]
[324877368,1714391438452,-2322.135522,0.00012698,2]
[324877371,1714391438472,-225.60355813,0.00012699,2]
[324877373,1714391438484,-500.0,0.00012699,2]
[324877375,1714391438495,-500.0,0.00012699,2]
[324877377,1714391438507,-500.0,0.00012699,2]
[324877379,1714391438518,-538.81920976,0.00012699,2]
[324877382,1714391438529,-334.7,0.00012699,2]
[324877384,1714391438540,-500.0,0.00012699,2]
[324877386,1714391438552,-500.0,0.00012699,2]
[324877388,1714391438563,-500.0,0.00012699,2]
[324877391,1714391438575,-500.0,0.00012699,2]
[324877393,1714391438587,-500.0,0.00012699,2]
[324877395,1714391438598,-1033.2572,0.000127,2]
[324877397,1714391438608,-1000.0,0.000127,2]
[324877399,1714391438619,-1547.7811,0.000127,2]
[324877402,1714391438631,-169285.72837149,0.000127,2]
[324877569,1714391440278,-500.0,0.00012699,2]
[324877571,1714391440289,-0.6643648,0.000127,2]
[324877574,1714391440304,-62653.64139142,0.000127,2]
[324877579,1714391440389,-7073.8742657,0.000127,2]
[324877582,1714391440443,-501.95511668,0.000127,2]
[324877584,1714391440458,-774.50651156,0.000127,2]
[324877650,1714391441051,-4426.59180211,0.000127,2]
[324877653,1714391441064,-1616.340362,0.000127,2]
[324877655,1714391441078,-3815.58,0.000127,2]
[324877710,1714391441578,-1948.83,0.000127,2]
[324877715,1714391441619,-500.0,0.00012699,2]
[324877717,1714391441628,-5982.09999999,0.000127,2]
[324877908,1714391443268,-320.205,0.00012079,2]
[324877911,1714391443278,-500.0,0.00012699,2]
[324877914,1714391443288,-30474.866168,0.000127,2]
[324877926,1714391443382,-500.0,0.00012699,2]
[324877928,1714391443393,-39412.25572739,0.000127,2]
[324877930,1714391443405,-3507.23,0.000127,2]
[324877941,1714391443492,-13727.27412877,0.000127,2]
[324877943,1714391443504,-9792.27436798,0.000127,2]
[324877945,1714391443515,-3397.76989014,0.000127,2]
[324877948,1714391443526,-1117.63928077,0.000127,2]
[324877951,1714391443554,-357.49520722,0.000127,2]
[324877952,1714391443565,-319.06,0.000127,2]
[324877953,1714391443610,-2595.58041615,0.000127,2]
[324877954,1714391443622,-11165.85331212,0.000127,2]
[324877972,1714391446134,-500.0,0.00012699,2]
[324877973,1714391446144,-1147.09143245,0.000127,2]
[324877974,1714391446199,-1123.52599367,0.000127,2]
[324877975,1714391446272,-1324.31273182,0.000127,2]
[324877976,1714391446285,-3648.58680476,0.000127,2]
[324877977,1714391446299,-3654.00003,0.000127,2]
[324877978,1714391446342,-792.1,0.000127,2]
[324877979,1714391446361,-3024.13162565,0.000127,2]
[324877980,1714391446387,-5456.68684212,0.000127,2]
[324877981,1714391446400,-28046.50469625,0.000127,2]
[324877982,1714391446412,-1000.0,0.000127,2]
[324877983,1714391446423,-150.0,0.00012703,2]
[324877984,1714391446434,-150.0,0.00012712,2]
[324877985,1714391446444,-150.0,0.00012716,2]
[324877986,1714391446453,-150.0,0.00012721,2]
[324877987,1714391446463,-222.01086919,0.00012722,2]
[324877988,1714391446472,-1500.0,0.00012728,2]
[324877989,1714391446482,-150.0,0.0001273,2]
[324877990,1714391446492,-150.0,0.00012733,2]
[324877991,1714391446501,-150.0,0.0001274,2]
[324877992,1714391446511,-150.0,0.0001274,2]
[324877993,1714391446521,-150.0,0.00012741,2]
[324877994,1714391446531,-1500.0,0.00012744,2]
[324877995,1714391446540,-150.0,0.00012751,2]
[324877996,1714391446549,-150.0,0.00012752,2]
[324877997,1714391446559,-226.0,0.0001276,2]
[324877998,1714391446568,-302.51433309,0.00012763,2]
[324877999,1714391446593,-1197.48566691,0.00012763,2]
[324878000,1714391446602,-2623.61627595,0.00012767,2]
[324878001,1714391446616,-1500.0,0.00012768,2]
[324878002,1714391446626,-150.0,0.00012776,2]
[324878003,1714391446634,-150.0,0.00012779,2]
[324878004,1714391446643,-150.0,0.0001278,2]
[324878005,1714391446652,-150.0,0.00012783,2]
[324878006,1714391446662,-177.11960856,0.00012789,2]
[324878007,1714391446672,-150.0,0.00012795,2]
[324878008,1714391446680,-150.0,0.00012796,2]
[324878009,1714391446690,-150.0,0.00012796,2]
[324878010,1714391446699,-500.0,0.00012799,2]
[324878011,1714391446708,-500.0,0.00012799,2]
[324878012,1714391446718,-500.0,0.00012799,2]
[324878013,1714391446727,-500.0,0.00012799,2]
[324878014,1714391446736,-500.0,0.00012799,2]
[324878015,1714391446746,-500.0,0.00012799,2]
[324878016,1714391446754,-500.0,0.00012799,2]
[324878017,1714391446763,-500.0,0.00012799,2]
[324878018,1714391446772,-500.0,0.00012799,2]
[324878019,1714391446781,-500.0,0.00012799,2]
[324878020,1714391446790,-450.0,0.00012799,2]
[324878021,1714391446798,-500.0,0.00012799,2]
[324878022,1714391446807,-150.0,0.00012799,2]
[324878023,1714391446816,-202.0,0.00012799,2]
[324878024,1714391446825,-500.0,0.00012799,2]
[324878025,1714391446834,-500.0,0.00012799,2]
[324878026,1714391446845,-500.0,0.00012799,2]
[324878027,1714391446854,-521.7363739,0.00012799,2]
[324878028,1714391446864,-500.0,0.00012799,2]
[324878029,1714391446874,-500.0,0.00012799,2]
[324878030,1714391446883,-500.0,0.00012799,2]
[324878031,1714391446893,-500.0,0.00012799,2]
[324878032,1714391446904,-500.0,0.00012799,2]
[324878033,1714391446914,-500.0,0.00012799,2]
[324878034,1714391446924,-500.0,0.00012799,2]
[324878035,1714391446933,-500.0,0.00012799,2]
[324878036,1714391446943,-500.0,0.00012799,2]
[324878037,1714391446952,-605.0361492,0.00012799,2]
[324878038,1714391446962,-500.0,0.00012799,2]
[324878039,1714391446972,-500.0,0.00012799,2]
[324878040,1714391446981,-500.0,0.00012799,2]
[324878041,1714391446990,-500.0,0.00012799,2]
[324878042,1714391446999,-500.0,0.00012799,2]
[324878043,1714391447008,-364.12354963,0.00012799,2]
[324878044,1714391447017,-5375.9,0.00012799,2]
[324878045,1714391447027,-500.0,0.00012799,2]
[324878046,1714391447036,-732.83,0.00012799,2]
[324878047,1714391447045,-500.0,0.00012799,2]
[324878048,1714391447054,-500.0,0.00012799,2]
[324878049,1714391447063,-519.1,0.00012799,2]
[324878050,1714391447072,-1812.26,0.00012799,2]
[324878051,1714391447081,-500.0,0.00012799,2]
[324878052,1714391447091,-500.0,0.00012799,2]
[324878053,1714391447100,-500.0,0.00012799,2]
[324878054,1714391447110,-500.0,0.00012799,2]
[324878055,1714391447119,-1283.29,0.00012799,2]
[324878056,1714391447128,-568.14,0.00012799,2]
[324878057,1714391447138,-500.0,0.00012799,2]
[324878058,1714391447147,-500.0,0.00012799,2]
[324878059,1714391447156,-500.0,0.00012799,2]
[324878060,1714391447165,-500.0,0.00012799,2]
[324878061,1714391447174,-500.0,0.00012799,2]
[324878062,1714391447183,-500.0,0.00012799,2]
[324878063,1714391447192,-500.0,0.00012799,2]
[324878064,1714391447201,-500.0,0.00012799,2]
[324878065,1714391447210,-500.0,0.00012799,2]
[324878066,1714391447220,-500.0,0.00012799,2]
[324878067,1714391447229,-500.0,0.00012799,2]
[324878068,1714391447239,-2009.33,0.00012799,2]
[324878069,1714391447248,-583.95,0.00012799,2]
[324878070,1714391447258,-500.0,0.00012799,2]
[324878071,1714391447267,-500.0,0.00012799,2]
[324878072,1714391447277,-961.92,0.00012799,2]
[324878073,1714391447286,-500.0,0.00012799,2]
[324878074,1714391447295,-500.0,0.00012799,2]
[324878075,1714391447304,-500.0,0.00012799,2]
[324878076,1714391447320,-500.0,0.00012799,2]
[324878077,1714391447330,-1032.35,0.00012799,2]
[324878078,1714391447339,-500.0,0.00012799,2]
[324878079,1714391447350,-721.21,0.00012799,2]
[324878080,1714391447361,-500.0,0.00012799,2]
[324878081,1714391447370,-1710.05,0.00012799,2]
[324878082,1714391447382,-500.0,0.00012799,2]
[324878083,1714391447394,-500.0,0.00012799,2]
[324878084,1714391447408,-500.0,0.00012799,2]
[324878085,1714391447420,-500.0,0.00012799,2]
[324878086,1714391447430,-919.68,0.00012799,2]
[324878087,1714391447440,-500.0,0.00012799,2]
[324878088,1714391447449,-524.97,0.00012799,2]
[324878089,1714391447458,-500.0,0.00012799,2]
[324878090,1714391447467,-500.0,0.00012799,2]
[324878091,1714391447476,-500.0,0.00012799,2]
[324878092,1714391447486,-500.0,0.00012799,2]
[324878093,1714391447496,-500.0,0.00012799,2]
[324878094,1714391447505,-500.0,0.00012799,2]
[324878095,1714391447514,-790.99,0.00012799,2]
[324878096,1714391447523,-500.0,0.00012799,2]
[324878097,1714391447533,-500.0,0.00012799,2]
[324878098,1714391447542,-500.0,0.00012799,2]
[324878099,1714391447552,-544.65,0.00012799,2]
[324878100,1714391447561,-500.0,0.00012799,2]
[324878101,1714391447570,-500.0,0.00012799,2]
[324878102,1714391447580,-500.0,0.00012799,2]
[324878103,1714391447589,-500.0,0.00012799,2]
[324878104,1714391447604,-500.0,0.00012799,2]
[324878105,1714391447613,-500.0,0.00012799,2]
[324878106,1714391447623,-500.0,0.00012799,2]
[324878107,1714391447633,-500.0,0.00012799,2]
[324878108,1714391447643,-500.0,0.00012799,2]
[324878109,1714391447652,-2310.14,0.00012799,2]
[324878110,1714391447661,-4947.63,0.00012799,2]
[324878111,1714391447671,-500.0,0.00012799,2]
[324878112,1714391447680,-500.0,0.00012799,2]
[324878113,1714391447689,-500.0,0.00012799,2]
[324878114,1714391447699,-267.95,0.00012799,2]
[324878115,1714391447708,-500.0,0.00012799,2]
[324878116,1714391447718,-500.0,0.00012799,2]
[324878117,1714391447727,-500.0,0.00012799,2]
[324878118,1714391447736,-500.0,0.00012799,2]
[324878119,1714391447746,-500.0,0.00012799,2]
[324878120,1714391447755,-502.22033365,0.00012799,2]
[324878121,1714391447764,-500.0,0.00012799,2]
[324878122,1714391447773,-500.0,0.00012799,2]
[324878123,1714391447782,-500.0,0.00012799,2]
[324878124,1714391447791,-785.05,0.00012799,2]
[324878125,1714391447801,-500.0,0.00012799,2]
[324878126,1714391447810,-500.0,0.00012799,2]
[324878127,1714391447819,-500.0,0.00012799,2]
[324878128,1714391447829,-500.0,0.00012799,2]
[324878129,1714391447838,-500.0,0.00012799,2]
[324878130,1714391447850,-500.0,0.00012799,2]
[324878131,1714391447859,-500.0,0.00012799,2]
[324878132,1714391447868,-500.0,0.00012799,2]
[324878133,1714391447878,-177.55,0.00012799,2]
[324878134,1714391447888,-500.0,0.00012799,2]
[324878135,1714391447897,-500.0,0.00012799,2]
[324878136,1714391447906,-500.0,0.00012799,2]
[324878137,1714391447915,-500.0,0.00012799,2]
[324878138,1714391447924,-500.0,0.00012799,2]
[324878139,1714391447934,-500.0,0.00012799,2]
[324878140,1714391447943,-500.0,0.00012799,2]
[324878141,1714391447952,-500.0,0.00012799,2]
[324878142,1714391447961,-500.0,0.00012799,2]
[324878143,1714391447971,-500.0,0.00012799,2]
[324878144,1714391447979,-500.0,0.00012799,2]
[324878145,1714391447989,-500.0,0.00012799,2]
[324878146,1714391447998,-405.57062227,0.00012799,2]
[324878147,1714391448007,-829.4,0.00012799,2]
[324878148,1714391448016,-648.58,0.00012799,2]
[324878149,1714391448025,-500.0,0.00012799,2]
[324878150,1714391448034,-6723.44,0.00012799,2]
[324878151,1714391448043,-1048.95914316,0.000128,2]
[324878152,1714391448052,-362.78576549,0.000128,2]
[324878153,1714391448062,-915.90714684,0.00012803,2]
[324878154,1714391448071,-150.0,0.00012803,2]
[324878155,1714391448080,-362.78576541,0.00012809,2]
[324878156,1714391448089,-150.0,0.00012816,2]
[324878157,1714391448105,-362.78576541,0.00012818,2]
[324878158,1714391448115,-150.0,0.00012823,2]
[324878159,1714391448124,-362.78576541,0.00012827,2]
[324878160,1714391448135,-150.0,0.00012831,2]
[324878161,1714391448146,-150.0,0.00012832,2]
[324878162,1714391448157,-150.0,0.00012833,2]
[324878163,1714391448166,-1500.0,0.00012835,2]
[324878164,1714391448176,-150.0,0.00012835,2]
[324878165,1714391448185,-362.78576541,0.00012836,2]
[324878166,1714391448195,-150.0,0.00012838,2]
[324878167,1714391448204,-150.0,0.00012838,2]
[324878168,1714391448214,-150.0,0.00012845,2]
[324878169,1714391448223,-362.78576541,0.00012845,2]
[324878170,1714391448233,-150.0,0.00012854,2]
[324878171,1714391448243,-362.78576541,0.00012855,2]
[324878172,1714391448254,-150.0,0.00012858,2]
[324878173,1714391448264,-195.72840091,0.00012861,2]
[324878174,1714391448274,-1000.0,0.00012863,2]
[324878175,1714391448284,-500.0,0.00012863,2]
[324878176,1714391448293,-362.78576541,0.00012864,2]
[324878177,1714391448302,-150.0,0.00012865,2]
[324878178,1714391448313,-150.0,0.00012868,2]
[324878179,1714391448326,-150.0,0.00012869,2]
[324878180,1714391448336,-362.78576541,0.00012873,2]
[324878181,1714391448348,-150.0,0.00012875,2]
[324878182,1714391448358,-226.0,0.0001288,2]
[324878183,1714391448367,-150.0,0.0001288,2]
[324878184,1714391448376,-362.78576541,0.00012882,2]
[324878185,1714391448385,-4583.44785109,0.00012884,2]
[324878186,1714391448396,-150.0,0.00012889,2]
[324878187,1714391448405,-326.72350736,0.0001289,2]
[324878188,1714391448416,-1500.0,0.0001289,2]
[324878189,1714391448427,-362.78576541,0.00012891,2]
[324878190,1714391448436,-150.0,0.00012892,2]
[324878191,1714391448446,-1000.0,0.00012895,2]
[324878192,1714391448456,-500.0,0.00012895,2]
[324878193,1714391448467,-669.4705482,0.00012896,2]
[324878194,1714391448478,-200.42770769,0.00012896,2]
[324878195,1714391448487,-706.66913894,0.00012896,2]
[324878196,1714391448497,-161.36093996,0.00012896,2]
[324878197,1714391448507,-456.29984529,0.00012897,2]
[324878198,1714391448516,-500.0,0.00012897,2]
[324878199,1714391448526,-610.55992721,0.00012897,2]
[324878200,1714391448536,-504.59801459,0.00012897,2]